Cogmind - Beta 13 *** ADVENTURER MODE // 2024.08.01 @ 14:49:35 Player: Jefffff Result: Destroyed by Y-45 Defender with Beam Rifle Performance ------------- Evolutions (1) 500 Regions Visited (2) 400 Robots Destroyed (53) 265 Value Destroyed (1042) 1042 Prototype IDs (5) 100 Alien Tech Used (0) 0 Bonus (0) 0 TOTAL SCORE: 2307 Bonus ------- None Cogmind --------- Core Integrity 0/400 Matter 289/300 Energy 260/280 System Corruption 0% Temperature Cool (9) Movement Rolling (95) Ox1 Location -9/Materials Parts ------- > --- POWER (1) -------- Cooled Ion Engine > --- PROPULSION (3) --- Wheel Wheel > --- UTILITY (3) ------ Large Storage Unit Signal Interpreter Transport Network Coupler > --- WEAPON (2) ------- Light Assault Rifle Light Assault Rifle > --- INVENTORY (15) --- Ion Engine Light Ion Engine Reinforced Ion Engine Cooled Ion Engine Authchip [R/NC] Authchip [R/Combat] Authchip [Propulsion] Authchip [Armor] Small Laser Light Assault Rifle Datajack Peak State ------------ > --- POWER ------------ Cooled Ion Engine > --- PROPULSION ------- Aluminum Leg Aluminum Leg > --- UTILITY ---------- Large Storage Unit Signal Interpreter Transport Network Coupler > --- WEAPON ----------- Beam Rifle Mining Claw > --- INVENTORY -------- Ion Engine Reinforced Ion Engine Wheel Wheel Authchip [R/NC] Authchip [R/Combat] Authchip [Propulsion] Authchip [Armor] Datajack [Rating: 13] Favorites ----------- Power Ion Engine Engine Ion Engine Propulsion Wheel Leg Aluminum Leg Wheel Wheel Utility Signal Interpreter Device Sensor Array Storage Large Storage Unit Processor Signal Interpreter Weapon Assault Rifle Energy Gun Small Laser Ballistic Gun Assault Rifle Special Weapon Welding Torch Slashing Weapon Mining Claw Build | -11 -10 -9 ------- Run | Yrd Mat Mat Slots Evolved 2 | . . 2 Power . | . . . Propulsion 1 | . . 1 Utility 1 | . . 1 Weapon . | . . . Parts Attached 54 | 5 31 18 Power 10 | . 7 3 Engine 10 | . 7 3 Core . | . . . Reactor . | . . . Propulsion 17 | 2 10 5 Treads . | . . . Leg 3 | . . 3 Wheel 14 | 2 10 2 Hover . | . . . Flight . | . . . Utility 11 | . 7 4 Device 6 | . 4 2 Storage 2 | . 1 1 Processor 3 | . 2 1 Hackware . | . . . Protection . | . . . Artifact . | . . . Weapon 16 | 3 7 6 Energy Gun 9 | 2 5 2 Energy Cannon . | . . . Ballistic Gun 5 | 1 2 2 Ballistic Cannon . | . . . Launcher . | . . . Special Weapon 1 | . . 1 Impact Weapon . | . . . Slashing Weapon 1 | . . 1 Piercing Weapon . | . . . Special Melee Weapon . | . . . Unidentified Prototypes 1 | . . 1 Parts Lost 12 | . 2 10 Power 1 | . . 1 Propulsion 3 | . . 3 Utility 2 | . 1 1 Weapon 6 | . 1 5 Highest Loss Streak 5 | . 1 5 To Critical Strikes . | . . . Average Slot Usage (%) 93 | . 98 86 Engine 12 | . 14 9 Leg 7 | . . 19 Wheel 19 | . 28 5 Device 12 | . 17 5 Storage 1 | . . 4 Processor 14 | . 9 22 Energy Gun 11 | . 13 8 Ballistic Gun 9 | . 13 1 Slashing Weapon 3 | . . 9 Naked Turns . | . . . Heaviest Build 33 | 4 26 33 Greatest Support 32 | 20 32 30 Greatest Overweight (x) 2 | . . 2 Average Overweight (x) . | . . . Largest Inventory Capacity 15 | 5 15 15 Average Capacity 6 | 5 5 9 Most Carried 12 | 5 5 12 Average Carried 5 | 1 4 6 Final Capacity 15 | 5 5 15 Final Carried 11 | 5 5 11 Class Distribution -------------------- 64% | Mutant 32% | Scavenger-Mutant Dominant Class ---------------- Mutant | -10/Materials Scavenger-Mutant | -9/Materials Resources | -11 -10 -9 ----------- Run | Yrd Mat Mat Matter Collected 970 | 169 624 177 Remotely . | . . . Salvage Created 1970 | 108 1013 849 Parts 144 | 12 68 64 Haulers Intercepted 4 | . 2 2 Recyclers Shooed 3 | . 1 2 Parts Field Recycled . | . . . Retrieved Matter . | . . . Parts Self-Destructed . | . . . Prevented . | . . . Kills | -11 -10 -9 ------- Run | Yrd Mat Mat Combat Hostiles Destroyed 29 | . 13 16 Melee 7 | . . 7 Guns 22 | . 13 9 Classes Destroyed 11 | 2 6 3 Worker 7 | . 5 2 Builder 3 | . 2 1 Tunneler 2 | 2 . . Hauler 4 | . 2 2 Recycler 3 | 1 2 . Mechanic 1 | . . 1 Watcher 4 | . 3 1 Swarmer 7 | . 3 4 Grunt 17 | . 10 7 Brawler 1 | . . 1 Sentry 4 | . . 4 Best Kill Streak 7 | 3 7 5 Combat Bots Only 5 | . 3 5 Max Kills in Single Turn 1 | 1 1 1 Gunslinging . | . . . Exploded . | . . . Melee 1 | . . 1 Uniques/NPCs Destroyed . | . . . Combat | -11 -10 -9 -------- Run | Yrd Mat Mat Hostile Shots Fired 283 | . 88 195 Missed 82 | . 22 60 Damage Taken 1851 | . 565 1286 Core 581 | . 178 403 Absorbed by Shields . | . . . Ignored by Resistances 561 | . 179 382 Regen/Repaired (Parts) 79 | . 79 . Core Remaining (%) 64 | 100 28 . Volleys Fired 164 | 3 78 83 Largest 2 | 2 2 1 Hottest 60 | 60 60 56 Shots Fired 240 | 6 151 83 Gun 235 | 6 151 78 Cannon . | . . . Launcher . | . . . Special 5 | . . 5 Kinetic 102 | 3 78 21 Thermal 90 | . 28 62 Explosive . | . . . Electromagnetic 48 | 3 45 . Robot Hit Streak 17 | 5 14 17 Robot Miss Streak 5 | . 5 2 Penetration Max . | . . . Secondary Targets 3 | . 3 . Max Gunslinging Chain 1 | . 1 . Shots Hit Robots 217 | 5 106 106 Core Hits 78 | 4 42 32 Critical Kills . | . . . Critical Parts Destroyed . | . . . Critical Strikes 3 | . 1 2 Burn 2 | . . 2 Corrupt 1 | . 1 . Melee Attacks 41 | . . 41 Impact . | . . . Slashing 41 | . . 41 Piercing . | . . . Sneak Attacks 4 | . . 4 Combat Hostiles . | . . . Follow-up Attacks . | . . . Damage Inflicted 3204 | 63 1339 1802 Guns 2251 | 63 1339 849 Cannons . | . . . Explosions . | . . . Melee 905 | . . 905 Ramming 38 | . . 38 Kinetic 807 | 25 616 166 Thermal 930 | . 237 693 Explosive . | . . . Electromagnetic 524 | 38 486 . Impact . | . . . Slashing 905 | . . 905 Piercing . | . . . Highest Corruption . | . . . Average Corruption . | . . . Corruption Purged . | . . . Corruption Blocked . | . . . Overload Shots . | . . . Overflow Damage 46 | . . 46 Projectiles . | . . . Explosions . | . . . Melee 46 | . . 46 Knockbacks . | . . . Impact . | . . . Kinetic . | . . . Secondary . | . . . Self-Inflicted Damage 18 | . . 18 Shots . | . . . Rammed 8 | . . 8 Targets Rammed 8 | . . 8 Kicked . | . . . Crushed . | . . . Highest Temperature 276 | . 114 276 Average Temperature 62 | . 47 80 Received Heat Transfer 870 | . 318 552 Siege Activations . | . . . Robots Corrupted . | . . . Combat Hostiles . | . . . Parts Fried 1 | . 1 . Impact Corruptions . | . . . Robots Melted . | . . . Combat Hostiles . | . . . Parts Melted 2 | . 1 1 Heat Transferred 2481 | . 550 1931 Parts Sabotaged . | . . . Parts Stolen . | . . . Parts Stripped . | . . . Power Chain Reactions . | . . . Alert | -11 -10 -9 ------- Run | Yrd Mat Mat Peak Influence 309 | 15 309 242 Initial 8 | . 8 . Average 116 | 4 120 120 Maximum Alert Level 1 | . 1 1 Low Security (%) 82 | 100 82 80 Level 1 17 | . 17 19 Level 2 . | . . . Level 3 . | . . . Level 4 . | . . . Level 5 . | . . . High Security . | . . . Max Security . | . . . Squads Dispatched 5 | . 3 2 Investigation 3 | . 3 . Extermination . | . . . Reinforcement 2 | . . 2 Assault . | . . . Garrison . | . . . Intercept . | . . . Searches Triggered . | . . . Construction Impeded . | . . . Haulers Reinforced . | . . . Active Scanning Responses . | . . . Cargo Convoy Interrupts . | . . . Stealth | -11 -10 -9 --------- Run | Yrd Mat Mat Distress Signals 5 | . 1 4 Communications Jammed . | . . . Distress Signals . | . . . Times Spotted 55 | . 23 32 Peak Tracking Total 7 | . 4 7 Tactical Retreats 4 | . . 4 Traps | -11 -10 -9 ------- Run | Yrd Mat Mat Traps Triggered 3 | . 2 1 Indirectly . | . . . Trap Hack Attempts . | . . . Triggered . | . . . Disarmed . | . . . Reprogrammed . | . . . Reused . | . . . Traps Extracted . | . . . Installed . | . . . Triggered . | . . . Machines | -11 -10 -9 ---------- Run | Yrd Mat Mat Machines Disabled . | . . . Max in Single Turn . | . . . Machines Repaired . | . . . Machines Dismantled . | . . . Machines Sabotaged . | . . . Overloaded Fab Kills . | . . . Hacking | -11 -10 -9 --------- Run | Yrd Mat Mat Machines Accessed 12 | . 10 2 Terminals 8 | . 7 1 Fabricators . | . . . Repair Stations 1 | . 1 . Recycling Units 2 | . 2 . Scanalyzers 1 | . . 1 Garrison Access . | . . . Total Hacks 37 | . 28 9 Successful 26 | . 20 6 Failed 11 | . 8 3 Catastrophic . | . . . Database Lockouts . | . . . Manual 27 | . 24 3 Terminals 27 | . 24 3 Fabricators . | . . . Repair Stations 2 | . 2 . Recycling Units 2 | . 2 . Scanalyzers 6 | . . 6 Garrison Access . | . . . Terminal Hacks 9 | . 9 . Prototype ID Bank 2 | . 2 . Branch Access Points 1 | . 1 . Terminal Index 3 | . 3 . Scanalyzer Index 1 | . 1 . Transport Status 1 | . 1 . Hauler Manifests 1 | . 1 . Fabricator Hacks . | . . . Repair Station Hacks 2 | . 2 . Scan Component 1 | . 1 . Repair 1 | . 1 . Recycling Unit Hacks . | . . . Scanalyzer 5 | . . 5 Insert Component 3 | . . 3 Analyze 2 | . . 2 Garrison Access Hacks . | . . . Unauthorized Hacks 10 | . 9 1 Terminals 8 | . 7 1 Botnet 8 | . 7 1 Fabricators . | . . . Repair Stations . | . . . Recycling Units 2 | . 2 . Tunnel 2 | . 2 . Scanalyzers . | . . . Garrison Access . | . . . Data Cores Recovered . | . . . Used . | . . . Hacking Detections 8 | . 7 1 Full Trace Events . | . . . Feedback Events . | . . . Feedback Blocked . | . . . Robot Schematics Acquired . | . . . Robots Built . | . . . Authchips . | . . . Time . | . . . Total Robot Build Rating . | . . . Part Schematics Acquired 2 | . . 2 Parts Built . | . . . Authchips . | . . . Time . | . . . Total Part Build Rating . | . . . Parts Repaired 1 | . 1 . Time 26 | . 26 . Parts Recycled . | . . . Recycled Matter . | . . . Retrieved Matter . | . . . Retrieved Components . | . . . Parts Scanalyzed 2 | . . 2 Part Schematics Acquired 2 | . . 2 Parts Damaged . | . . . Bothacking | -11 -10 -9 ------------ Run | Yrd Mat Mat Used RIF Installer . | . . . Robots Hacked . | . . . Non-combat . | . . . Combat . | . . . Robot Hacks Applied . | . . . Relay Couplers Released . | . . . Fabnet Peak Effective % . | . . . Robots Rewired . | . . . Allies Hacked . | . . . Hacks Repelled . | . . . Allies | -11 -10 -9 -------- Run | Yrd Mat Mat Total Allies . | . . . Largest Group . | . . . Highest-Rated Group . | . . . Highest-Rated Ally . | . . . Total Orders . | . . . Ally Attacks . | . . . Total Damage . | . . . Kills . | . . . Allies Corrupted . | . . . Allies Melted . | . . . Intel | -11 -10 -9 ------- Run | Yrd Mat Mat Robot Analysis Total . | . . . Derelict Logs Recovered . | . . . Drone Launches . | . . . Drone Recoveries . | . . . Exploration | -11 -10 -9 ------------- Run | Yrd Mat Mat Turns Passed 2328 | 68 1402 858 Spaces Moved 1528 | 57 1093 378 Core 6 | 6 . . Treads . | . . . Legs 264 | . . 264 Wheels 1258 | 51 1093 114 Hover . | . . . Flight . | . . . Fastest Speed 50 | 50 80 90 Average Speed 97 | 76 88 127 Slowest Speed 260 | 80 100 260 Overloaded Moves . | . . . Propulsion Burnouts . | . . . Robots Hopped . | . . . Cave-ins Triggered . | . . . Exploration Rate (%) 41 | 3 96 24 Regions Visited 2 Branch Regions . Pre-discovered Areas 2 | . 2 . Known Exits Taken 1 | . 1 . Unknown Exits Taken 1 | 1 . . Scrap Searched . | . . . Spaces Dug 2 | . . 2 Terrain Destroyed 2 | . . 2 Melee 2 | . . 2 Projectile . | . . . AOE . | . . . Terrain Rammed . | . . . Walls Destroyed . | . . . Machines Disabled . | . . . Actions | -11 -10 -9 --------- Run | Yrd Mat Mat Total 2048 | 73 1384 591 Wait 187 | . 146 41 Move 1526 | 56 1092 378 Hop . | . . . Pick Up 37 | 8 13 16 Fast Attach 13 | 2 5 6 Attach 18 | 2 8 8 Detach . | . . . Swap 23 | 1 18 4 Drop 31 | 1 24 6 Fire 164 | 3 78 83 Melee 41 | . . 41 Ram 8 | . . 8 Kick . | . . . Crush . | . . . Escape Stasis . | . . . Rewire . | . . . Trap . | . . . Miscellaneous . | . . . Route ------- -11/Scrapyard -10/Materials (discovered 5 exits: *Mat x3 / *Min / [Sub]) -9/Materials History --------- Turn | Location | Event 4 | -11/Scrapyard | Discovered new exit (range 16) 69 | -11/Scrapyard | Entered Materials 205 | -10/Materials | Discovered new exit (range 10) 311 | -10/Materials | Build established: Mutant 352 | -10/Materials | Discovered new exit (range 7) 426 | -10/Materials | Core integrity fell below 50% 458 | -10/Materials | Discovered new exit (range 8) 575 | -10/Materials | Discovered new exit (range 8) 663 | -10/Materials | Discovered new exit (range 11) 1030 | -10/Materials | Repaired Assault Rifle 1174 | -10/Materials | Identified exit to Mines 1327 | -10/Materials | Identified exit to Materials 1471 | -10/Materials | Entered another Materials area 1471 | -9/Materials | Evolved 2 slots: Propulsion x1, Utility x1 1935 | -9/Materials | Build established: Scavenger-Mutant 2098 | -9/Materials | Core integrity fell below 50% 2259 | -9/Materials | Core integrity fell below 20% 2311 | -9/Materials | Lost 5 parts (2n3w) 2329 | -9/Materials | Destroyed by Y-45 Defender with Beam Rifle Last Messages --------------- 02291_ G-34 Mercenary destroyed. 02293_ Acquired 12 matter. 02298_ Acquired Sml. Laser. 02300_ S-10 Pest destroyed. 02310_ Destroyed Flight Unit. 02311_ K-01 Serf collects debris. 02315_ S-10 Pest destroyed. 02317_ K-01 Serf collects debris. 02318_ Acquired Lgt. Ion Engine. 02318_ R-06 Scavenger collects Aluminum Leg. 02320_ K-01 Serf collects debris. 02320_ R-06 Scavenger collects Aluminum Leg. 02321_ Acquired 9 matter. 02323_ Acquired Lgt. Assault Rifle. 02324_ K-01 Serf collects debris. 02324_ R-06 Scavenger collects Lgt. Assault Rifle. 02326_ Acquired Lgt. Assault Rifle. 02327_ R-06 Scavenger collects Flight Unit. 02328_ K-01 Serf collects debris. Map ----- +----------------------------------------------------+ | | | | | | | | | | | | | | | | | | | ?????????????????????????????????????????????????? | | ?????????????????????????????????????????????????? | | ?????????????????????????????????????????????????? | | ?????????????????????????????????????????????????? | | ?????????????????????????????????????????????????? | | ?????????????????????????????????????????????????? | | ?????????????????????????????????????????????????? | | ?????????????????????????????????????????????????? | | ?????????????????????????????????????????????????? | | ????????????????+????????????????????????????????? | | ????????????????# ???????????????????????????????? | | ????????????????# ???????????????????????a??????? | | ???????????????## ?????????????????????????????? | | ???????????#####] ########????????????????????? | | ?????????? #### #???????????????? | | ?????????? Y #???????????????? | | ?????????? @ #????????????????????? | | ???????????????# ####%* #????????????????????? | | ????????????????????????#=%=#????????????????????? | | ????????????????????????# kr#????????????????????? | | ????????????????????????#% #????????????????????? | | ????????????????????????# #????????????????????? | | ????????????????????????# #????????????????????? | | ????????????????????????#% #????????????????????? | | ????????????????????????#r###????????????????????? | | ????????????????????????#%#??????????????????????? | | ????????????????????????#u#??????????????????????? | | ????????????????????????#%############+##????????? | | ????????????????????????#% #????????? | | ????????????????????????# ???????? | | ????????????????????????# T !! """ #????????? | | ????????????????????????# %!! """ ?????????? | | ????????????????????????# ! """ #????????? | | ????????????????????????# ??????? | | ????????????????????????#% ???? | | ??????????????????????###%########### ????? | | ####################### %%#???????????######+????? | | %=* % % % %% #??????????????????????? | | ####################### #??????????????????????? | | ????????????# ## % #??????????????????????? | | ????????????# """ ## ##?????????????????????? | +----------------------------------------------------+ Best States ------------- Heat Dissipation 38 Energy Generation 14 Energy Capacity 280 Matter Stores 300 Matter Capacity 300 Sight Range 16 Robot Scan Range 14 Terrain Scan Range 16 Terrain Scan Density 10 Resistance: KI 20 Resistance: TH 20 Resistance: EX 20 Resistance: EM 20 Resistance: I 20 Resistance: S 20 Resistance: P 20 Evasion (%) 55 Offensive Hacking 10 Authchip Count 4 Item Schematics ----------------- Lrg. Storage Unit | -9/Materials | Scanalyzed Ion Engine | -9/Materials | Scanalyzed Robot Schematics ------------------ None Fabricated ------------ Nothing Alien Tech Used ----------------- None Achievements -------------- None Challenges ------------ None Game ------ Seed FluxScrapTendrils Manual? 0 Play Time 00:23:20 Cumulative 110.6 hours Start 2024.08.01 @ 13:33:16 End 2024.08.01 @ 14:49:35 Sessions 1 Manual Loads 0 Difficulty Adventurer Special Mode None Game No. 154 Rogue 0 Adventurer 154 Explorer 0 Win Type - Total 0 Types 0/0/0/0/0/0/0/0/0 Lore% 47 Gallery% 52 Achievement% 37 Wizard Run 0 Options --------- Layout 2 ASCII 0 Keyboard 0 Movement Mouse Keybinds 0 Fullscreen 2 Font 48/Terminus Map View 50x44 Zoom Use 0% Tactical HUD 1 Map Filters NONE Filters NONE Steam 1 RUN: a1e68a7a-f870-4eb9-8e53-c9d7bd8c7ed3